[Event "Early-Titled-Tuesday-Blitz-March-19-2024"]
[Site "Chess.com"]
[Date "2024.03.19"]
[Round "6"]
[White "guillembaches"]
[Black "Susal_De_Silva"]
[Result "1-0"]
[WhiteElo "2569"]
[BlackElo "2783"]
[TimeControl "180+1"]
[EndTime "9:07:38 PDT"]
[Termination "guillembaches won by checkmate"]

1. d4 {[%clk 0:03:00.9]} 1... Nf6 {[%clk 0:02:58.6]} 2. Nf3 {[%clk 0:03:01.4]}
2... e6 {[%clk 0:02:56.2]} 3. Bg5 {[%clk 0:03:01.9]} 3... h6 {[%clk 0:02:55.4]}
4. Bh4 {[%clk 0:03:01.8]} 4... g5 {[%clk 0:02:55.2]} 5. Bg3 {[%clk 0:03:01.2]}
5... Bg7 {[%clk 0:02:56]} 6. e3 {[%clk 0:03:00.2]} 6... b6 {[%clk 0:02:56.2]} 7.
Nbd2 {[%clk 0:02:59]} 7... Bb7 {[%clk 0:02:56.7]} 8. Bd3 {[%clk 0:02:58.8]} 8...
Nh5 {[%clk 0:02:57]} 9. c3 {[%clk 0:02:52]} 9... d6 {[%clk 0:02:54.9]} 10. e4
{[%clk 0:02:51.6]} 10... Nd7 {[%clk 0:02:53.9]} 11. Qe2 {[%clk 0:02:51.7]} 11...
a6 {[%clk 0:02:52.7]} 12. Nc4 {[%clk 0:02:51.7]} 12... Qe7 {[%clk 0:02:47.8]}
13. Nfd2 {[%clk 0:02:51.6]} 13... Nxg3 {[%clk 0:02:46.7]} 14. hxg3 {[%clk
0:02:52.5]} 14... O-O {[%clk 0:02:29.2]} 15. Ne3 {[%clk 0:02:41.9]} 15... e5
{[%clk 0:01:37.4]} 16. d5 {[%clk 0:02:22.7]} 16... Qf6 {[%clk 0:01:32.9]} 17.
Nf5 {[%clk 0:02:08.3]} 17... c6 {[%clk 0:01:30]} 18. c4 {[%clk 0:02:07.9]} 18...
b5 {[%clk 0:01:28.5]} 19. b3 {[%clk 0:02:07]} 19... bxc4 {[%clk 0:01:28.1]} 20.
bxc4 {[%clk 0:02:05.7]} 20... Nc5 {[%clk 0:01:28.3]} 21. Bc2 {[%clk 0:02:03.5]}
21... cxd5 {[%clk 0:01:27]} 22. cxd5 {[%clk 0:01:57.5]} 22... Rfc8 {[%clk
0:01:25.1]} 23. Nc4 {[%clk 0:01:48.1]} 23... Rd8 {[%clk 0:01:14.7]} 24. Rb1
{[%clk 0:01:35.9]} 24... a5 {[%clk 0:01:13]} 25. Rb6 {[%clk 0:01:29.7]} 25...
Ra6 {[%clk 0:00:57.3]} 26. Rb5 {[%clk 0:01:08.4]} 26... Raa8 {[%clk 0:00:47.1]}
27. Rxa5 {[%clk 0:01:04.9]} 27... Ba6 {[%clk 0:00:47.1]} 28. Nfe3 {[%clk
0:00:58.1]} 28... Rdb8 {[%clk 0:00:40.6]} 29. O-O {[%clk 0:00:50]} 29... Qd8
{[%clk 0:00:32]} 30. Ra3 {[%clk 0:00:39.5]} 30... Rb2 {[%clk 0:00:32.2]} 31. Rb1
{[%clk 0:00:31.1]} 31... Rxb1+ {[%clk 0:00:23.6]} 32. Bxb1 {[%clk 0:00:32]}
32... Qb8 {[%clk 0:00:22.8]} 33. Bd3 {[%clk 0:00:28]} 33... Qb4 {[%clk 0:00:21]}
34. Nc2 {[%clk 0:00:20.3]} 34... Qb1+ {[%clk 0:00:13.1]} 35. Kh2 {[%clk
0:00:19.9]} 35... Qb8 {[%clk 0:00:07.9]} 36. N2e3 {[%clk 0:00:15.9]} 36... Bf8
{[%clk 0:00:05.2]} 37. f3 {[%clk 0:00:15.8]} 37... Qb4 {[%clk 0:00:04.9]} 38.
Qb2 {[%clk 0:00:11.1]} 38... Qe1 {[%clk 0:00:04.5]} 39. Nc2 {[%clk 0:00:09.4]}
39... Qd1 {[%clk 0:00:01.2]} 40. Nb4 {[%clk 0:00:08.9]} 40... Bxc4 {[%clk
0:00:01.1]} 41. Rxa8 {[%clk 0:00:07.8]} 41... Bxd3 {[%clk 0:00:01.2]} 42. Nxd3
{[%clk 0:00:08.2]} 42... Qxd3 {[%clk 0:00:02.1]} 43. Qb8 {[%clk 0:00:08.6]}
43... Kh7 {[%clk 0:00:02]} 44. Qxf8 {[%clk 0:00:09.1]} 44... Kg6 {[%clk
0:00:02.5]} 45. Qg8+ {[%clk 0:00:09.5]} 45... Kh5 {[%clk 0:00:03]} 46. Qxf7#
{[%clk 0:00:08.4]} 1-0

[Event "Early-Titled-Tuesday-Blitz-March-19-2024"]
[Site "Chess.com"]
[Date "2024.03.19"]
[Round "6"]
[White "Ati1517"]
[Black "Orest_Vovk"]
[Result "0-1"]
[WhiteElo "2242"]
[BlackElo "2530"]
[TimeControl "180+1"]
[EndTime "9:07:39 PDT"]
[Termination "Orest_Vovk won by checkmate"]

1. e4 {[%clk 0:03:00.9]} 1... g5 {[%clk 0:02:55.6]} 2. d4 {[%clk 0:02:57.7]}
2... g4 {[%clk 0:02:55.7]} 3. Nc3 {[%clk 0:02:53.6]} 3... Bg7 {[%clk 0:02:55.3]}
4. Be3 {[%clk 0:02:51.7]} 4... d6 {[%clk 0:02:52]} 5. f3 {[%clk 0:02:51.8]} 5...
c6 {[%clk 0:02:52.5]} 6. fxg4 {[%clk 0:02:50.1]} 6... Qa5 {[%clk 0:02:52.4]} 7.
h3 {[%clk 0:02:47.7]} 7... h5 {[%clk 0:02:50.9]} 8. Be2 {[%clk 0:02:45.3]} 8...
Nf6 {[%clk 0:02:46]} 9. g5 {[%clk 0:02:41.2]} 9... Nxe4 {[%clk 0:02:43.1]} 10.
Qd3 {[%clk 0:02:14.3]} 10... Bf5 {[%clk 0:02:34.4]} 11. Qd1 {[%clk 0:01:46.1]}
11... Nxc3 {[%clk 0:02:31]} 12. bxc3 {[%clk 0:01:47]} 12... Qxc3+ {[%clk
0:02:31]} 13. Bd2 {[%clk 0:01:47.3]} 13... Qg3+ {[%clk 0:02:30.1]} 14. Kf1
{[%clk 0:01:46.5]} 14... Bxd4 {[%clk 0:02:28.7]} 15. Be1 {[%clk 0:01:44.3]}
15... Qf4+ {[%clk 0:02:10.5]} 16. Nf3 {[%clk 0:01:43.6]} 16... Bxa1 {[%clk
0:02:02.9]} 17. Qxa1 {[%clk 0:01:42.7]} 17... e5 {[%clk 0:02:03.4]} 18. Qb2
{[%clk 0:01:34.7]} 18... b5 {[%clk 0:01:52.8]} 19. c4 {[%clk 0:01:27.2]} 19...
Nd7 {[%clk 0:01:33.7]} 20. cxb5 {[%clk 0:01:21.4]} 20... cxb5 {[%clk 0:01:28.8]}
21. Qxb5 {[%clk 0:01:05]} 21... Ke7 {[%clk 0:01:24.5]} 22. Bd2 {[%clk
0:00:31.8]} 22... Qe4 {[%clk 0:01:15.5]} 23. Kf2 {[%clk 0:00:31.5]} 23... Rab8
{[%clk 0:01:08.2]} 24. Qa5 {[%clk 0:00:26.7]} 24... Rb2 {[%clk 0:01:03.1]} 25.
Qc3 {[%clk 0:00:20.5]} 25... Rc2 {[%clk 0:00:55.9]} 26. Qb3 {[%clk 0:00:18.4]}
26... Nc5 {[%clk 0:00:44.6]} 27. Qb5 {[%clk 0:00:14.6]} 27... Qb7 {[%clk
0:00:30.6]} 28. Qa5 {[%clk 0:00:12.8]} 28... Ne4+ {[%clk 0:00:26.4]} 29. Ke1
{[%clk 0:00:12.1]} 29... Nxd2 {[%clk 0:00:23]} 30. Nxd2 {[%clk 0:00:11.6]} 30...
Rc1+ {[%clk 0:00:14.3]} 31. Bd1 {[%clk 0:00:11.1]} 31... Qxg2 {[%clk 0:00:11.4]}
32. Qxa7+ {[%clk 0:00:10]} 32... Bd7 {[%clk 0:00:11.4]} 33. Rg1 {[%clk 0:00:10]}
33... Qxh3 {[%clk 0:00:07.2]} 34. Qf2 {[%clk 0:00:09.6]} 34... Bg4 {[%clk
0:00:05.1]} 35. Qf6+ {[%clk 0:00:09.3]} 35... Kd7 {[%clk 0:00:04.1]} 36. Qxf7+
{[%clk 0:00:04.7]} 36... Kc6 {[%clk 0:00:04.5]} 37. Rxg4 {[%clk 0:00:04.3]}
37... Qxg4 {[%clk 0:00:04.3]} 38. Qb3 {[%clk 0:00:02.7]} 38... Qxd1+ {[%clk
0:00:03.8]} 39. Qxd1 {[%clk 0:00:03.6]} 39... Rxd1+ {[%clk 0:00:04.4]} 40. Kxd1
{[%clk 0:00:04.5]} 40... h4 {[%clk 0:00:04.8]} 41. Nf3 {[%clk 0:00:05.2]} 41...
h3 {[%clk 0:00:05.3]} 42. Nh2 {[%clk 0:00:05.8]} 42... Rg8 {[%clk 0:00:05.8]}
43. g6 {[%clk 0:00:06.7]} 43... Rxg6 {[%clk 0:00:06]} 44. Kd2 {[%clk 0:00:07.2]}
44... Rg2+ {[%clk 0:00:06.5]} 45. Ke1 {[%clk 0:00:08.1]} 45... Rxh2 {[%clk
0:00:07.2]} 46. Kf1 {[%clk 0:00:08.8]} 46... Rg2 {[%clk 0:00:07.1]} 47. Ke1
{[%clk 0:00:08.9]} 47... e4 {[%clk 0:00:07.7]} 48. Kf1 {[%clk 0:00:09.8]} 48...
e3 {[%clk 0:00:08.2]} 49. Ke1 {[%clk 0:00:09.9]} 49... Rf2 {[%clk 0:00:08.5]}
50. Kd1 {[%clk 0:00:09.8]} 50... h2 {[%clk 0:00:08.9]} 51. Kc1 {[%clk
0:00:10.1]} 51... h1=R# {[%clk 0:00:08.5]} 0-1

[Event "Early-Titled-Tuesday-Blitz-March-19-2024"]
[Site "Chess.com"]
[Date "2024.03.19"]
[Round "6"]
[White "FormerProdigy"]
[Black "Elegance_Riks"]
[Result "1/2-1/2"]
[WhiteElo "2946"]
[BlackElo "2773"]
[TimeControl "180+1"]
[EndTime "9:07:40 PDT"]
[Termination "Game drawn by repetition"]

1. e4 {[%clk 0:03:00.9]} 1... e6 {[%clk 0:02:59.3]} 2. d4 {[%clk 0:03:00.2]}
2... d5 {[%clk 0:02:59.5]} 3. Nd2 {[%clk 0:03:00.5]} 3... c5 {[%clk 0:02:58.3]}
4. Ngf3 {[%clk 0:02:59.4]} 4... Nc6 {[%clk 0:02:57.9]} 5. exd5 {[%clk 0:02:59]}
5... exd5 {[%clk 0:02:58.8]} 6. Bb5 {[%clk 0:02:59.4]} 6... Qe7+ {[%clk
0:02:59.3]} 7. Qe2 {[%clk 0:02:54.4]} 7... Qxe2+ {[%clk 0:02:58.8]} 8. Kxe2
{[%clk 0:02:55.3]} 8... a6 {[%clk 0:02:59.4]} 9. Bxc6+ {[%clk 0:02:55.2]} 9...
bxc6 {[%clk 0:03:00.3]} 10. Re1 {[%clk 0:02:53.8]} 10... f6 {[%clk 0:02:51.4]}
11. dxc5 {[%clk 0:02:48.3]} 11... Bxc5 {[%clk 0:02:50.1]} 12. Nb3 {[%clk
0:02:49]} 12... Bd6 {[%clk 0:02:42.5]} 13. Be3 {[%clk 0:02:45.9]} 13... a5
{[%clk 0:02:40.3]} 14. Bc5 {[%clk 0:02:44.4]} 14... Kd7 {[%clk 0:02:32.7]} 15.
Bxd6 {[%clk 0:02:28.6]} 15... Kxd6 {[%clk 0:02:31.4]} 16. Kd2 {[%clk 0:02:22.4]}
16... Ne7 {[%clk 0:02:25.6]} 17. a4 {[%clk 0:02:16.7]} 17... Ng6 {[%clk
0:02:24.7]} 18. Nbd4 {[%clk 0:02:13.4]} 18... Ne5 {[%clk 0:02:20.7]} 19. b3
{[%clk 0:02:09.8]} 19... Bd7 {[%clk 0:02:13.8]} 20. Re3 {[%clk 0:02:06.8]} 20...
c5 {[%clk 0:02:02]} 21. Nb5+ {[%clk 0:01:58.4]} 21... Bxb5 {[%clk 0:02:01.9]}
22. axb5 {[%clk 0:01:59.3]} 22... Nxf3+ {[%clk 0:01:56.6]} 23. gxf3 {[%clk
0:01:53.4]} 23... d4 {[%clk 0:01:30]} 24. Re4 {[%clk 0:01:52.9]} 24... Rhb8
{[%clk 0:01:28.6]} 25. c4 {[%clk 0:01:52]} 25... dxc3+ {[%clk 0:01:28.5]} 26.
Kxc3 {[%clk 0:01:52.9]} 26... Rxb5 {[%clk 0:01:17.3]} 27. Rd1+ {[%clk
0:01:53.3]} 27... Kc6 {[%clk 0:00:58.4]} 28. Re6+ {[%clk 0:01:53.5]} 28... Kb7
{[%clk 0:00:58.7]} 29. Re7+ {[%clk 0:01:54.4]} 29... Ka6 {[%clk 0:00:58.9]} 30.
Rxg7 {[%clk 0:01:44.6]} 30... Rab8 {[%clk 0:00:42.9]} 31. Rd6+ {[%clk
0:01:44.9]} 31... R8b6 {[%clk 0:00:41.9]} 32. Rxb6+ {[%clk 0:01:45.5]} 32...
Rxb6 {[%clk 0:00:42.7]} 33. Rxh7 {[%clk 0:01:43.4]} 33... Rb4 {[%clk 0:00:43]}
34. h4 {[%clk 0:00:48.2]} 34... Rf4 {[%clk 0:00:42.5]} 35. h5 {[%clk 0:00:48.7]}
35... Kb5 {[%clk 0:00:42.2]} 36. Rb7+ {[%clk 0:00:44.2]} 36... Kc6 {[%clk
0:00:42.4]} 37. Rf7 {[%clk 0:00:41.4]} 37... Rxf3+ {[%clk 0:00:42.4]} 38. Kc4
{[%clk 0:00:42.1]} 38... Rf4+ {[%clk 0:00:42.6]} 39. Kd3 {[%clk 0:00:42.2]}
39... Rxf2 {[%clk 0:00:34.6]} 40. h6 {[%clk 0:00:38.2]} 40... Rf3+ {[%clk
0:00:28.7]} 41. Ke4 {[%clk 0:00:34.8]} 41... Rxb3 {[%clk 0:00:25.4]} 42. Rxf6+
{[%clk 0:00:25.4]} 42... Kb5 {[%clk 0:00:25.4]} 43. Rf3 {[%clk 0:00:25.4]} 43...
Rb4+ {[%clk 0:00:25.6]} 44. Kf5 {[%clk 0:00:25.1]} 44... Rh4 {[%clk 0:00:25.7]}
45. Kg5 {[%clk 0:00:25.1]} 45... Rh1 {[%clk 0:00:24]} 46. Kg6 {[%clk 0:00:09.3]}
46... a4 {[%clk 0:00:23.4]} 47. h7 {[%clk 0:00:07.5]} 47... Kb4 {[%clk
0:00:19.4]} 48. Rf8 {[%clk 0:00:06.6]} 48... Rxh7 {[%clk 0:00:18.9]} 49. Kxh7
{[%clk 0:00:07.5]} 49... a3 {[%clk 0:00:19.4]} 50. Rb8+ {[%clk 0:00:07.5]} 50...
Kc3 {[%clk 0:00:19.5]} 51. Ra8 {[%clk 0:00:07.5]} 51... Kb2 {[%clk 0:00:19.5]}
52. Rb8+ {[%clk 0:00:07.7]} 52... Kc3 {[%clk 0:00:19.8]} 53. Ra8 {[%clk
0:00:07.8]} 53... Kb2 {[%clk 0:00:20.3]} 54. Rb8+ {[%clk 0:00:08.2]} 54... Kc3
{[%clk 0:00:20.8]} 1/2-1/2

[Event "Early-Titled-Tuesday-Blitz-March-19-2024"]
[Site "Chess.com"]
[Date "2024.03.19"]
[Round "6"]
[White "Zampronha1971"]
[Black "Kazmin_Semyon"]
[Result "0-1"]
[WhiteElo "2313"]
[BlackElo "2544"]
[TimeControl "180+1"]
[EndTime "9:07:41 PDT"]
[Termination "Kazmin_Semyon won by resignation"]

1. e4 {[%clk 0:03:00.9]} 1... e6 {[%clk 0:02:59.9]} 2. d4 {[%clk 0:03:00.1]}
2... d5 {[%clk 0:03:00.4]} 3. Nc3 {[%clk 0:03:00.5]} 3... Bb4 {[%clk 0:03:00.7]}
4. e5 {[%clk 0:03:00.5]} 4... c5 {[%clk 0:03:01]} 5. a3 {[%clk 0:03:00.9]} 5...
Bxc3+ {[%clk 0:03:01.4]} 6. bxc3 {[%clk 0:03:01.7]} 6... Qa5 {[%clk 0:02:59.6]}
7. Bd2 {[%clk 0:02:58.4]} 7... Qa4 {[%clk 0:03:00]} 8. Nf3 {[%clk 0:02:58.3]}
8... b6 {[%clk 0:02:56.8]} 9. Bd3 {[%clk 0:02:56.8]} 9... Ba6 {[%clk 0:02:56.5]}
10. O-O {[%clk 0:02:55.4]} 10... Bxd3 {[%clk 0:02:55.5]} 11. cxd3 {[%clk
0:02:55.2]} 11... Qxd1 {[%clk 0:02:56.1]} 12. Rfxd1 {[%clk 0:02:55.7]} 12... Nd7
{[%clk 0:02:54.9]} 13. a4 {[%clk 0:02:51.8]} 13... Ne7 {[%clk 0:02:49.7]} 14.
Rdb1 {[%clk 0:02:49.7]} 14... O-O {[%clk 0:02:49.8]} 15. a5 {[%clk 0:02:50.1]}
15... Rfb8 {[%clk 0:02:42.6]} 16. Kf1 {[%clk 0:02:36.6]} 16... Nc6 {[%clk
0:02:29.7]} 17. axb6 {[%clk 0:02:35]} 17... axb6 {[%clk 0:02:30.6]} 18. Ke2
{[%clk 0:02:27.8]} 18... Kf8 {[%clk 0:02:28.1]} 19. Kd1 {[%clk 0:02:25.6]} 19...
h6 {[%clk 0:02:19]} 20. Kc2 {[%clk 0:02:23]} 20... Ke7 {[%clk 0:02:17.5]} 21. h3
{[%clk 0:02:23.1]} 21... Kd8 {[%clk 0:02:17.2]} 22. Be3 {[%clk 0:02:21.7]} 22...
Kc7 {[%clk 0:02:15.7]} 23. Nd2 {[%clk 0:02:10.6]} 23... cxd4 {[%clk 0:02:09.8]}
24. cxd4 {[%clk 0:02:10]} 24... Ra7 {[%clk 0:01:11.1]} 25. Rxa7+ {[%clk
0:02:05.3]} 25... Nxa7 {[%clk 0:01:12]} 26. Ra1 {[%clk 0:02:01.6]} 26... Nc6
{[%clk 0:01:12.1]} 27. Nb3 {[%clk 0:01:55.1]} 27... Kb7 {[%clk 0:01:09.3]} 28.
Kb2 {[%clk 0:01:51.8]} 28... g5 {[%clk 0:00:59.5]} 29. Nc1 {[%clk 0:01:43.8]}
29... f6 {[%clk 0:00:56.8]} 30. exf6 {[%clk 0:01:41.6]} 30... Nxf6 {[%clk
0:00:57.2]} 31. Ne2 {[%clk 0:01:39]} 31... Ne8 {[%clk 0:00:54.4]} 32. Nc3 {[%clk
0:01:35]} 32... Nd6 {[%clk 0:00:53.1]} 33. g4 {[%clk 0:01:35.5]} 33... Rf8
{[%clk 0:00:47.4]} 34. h4 {[%clk 0:01:30.6]} 34... gxh4 {[%clk 0:00:46.2]} 35.
Rh1 {[%clk 0:01:31.3]} 35... h5 {[%clk 0:00:35.5]} 36. gxh5 {[%clk 0:01:26.6]}
36... Nf5 {[%clk 0:00:36.1]} 37. h6 {[%clk 0:01:25.2]} 37... Rh8 {[%clk
0:00:36.7]} 38. Nb5 {[%clk 0:01:21.8]} 38... Nxe3 {[%clk 0:00:34.1]} 39. fxe3
{[%clk 0:01:21.8]} 39... Rxh6 {[%clk 0:00:34.8]} 40. Rh3 {[%clk 0:01:19]} 40...
Ne7 {[%clk 0:00:27.6]} 41. e4 {[%clk 0:01:15.3]} 41... Ng6 {[%clk 0:00:24.8]}
42. Nd6+ {[%clk 0:01:07]} 42... Kc6 {[%clk 0:00:23.4]} 43. Nf7 {[%clk
0:01:07.9]} 43... Rh5 {[%clk 0:00:23.6]} 44. Kc3 {[%clk 0:00:58.9]} 44... Nf4
{[%clk 0:00:19.2]} 45. Rh2 {[%clk 0:00:59.1]} 45... h3 {[%clk 0:00:18.5]} 46.
Ne5+ {[%clk 0:00:58.6]} 46... Kd6 {[%clk 0:00:17.2]} 47. Nf7+ {[%clk 0:00:57.5]}
47... Ke7 {[%clk 0:00:17.1]} 48. Ne5 {[%clk 0:00:57.7]} 48... Kf6 {[%clk
0:00:11.8]} 49. Nd7+ {[%clk 0:00:56.4]} 49... Kg5 {[%clk 0:00:12.2]} 50. Nxb6
{[%clk 0:00:57.3]} 50... Kg4 {[%clk 0:00:12.6]} 51. Nd7 {[%clk 0:00:31]} 51...
Kg3 {[%clk 0:00:12.7]} 0-1

[Event "Early-Titled-Tuesday-Blitz-March-19-2024"]
[Site "Chess.com"]
[Date "2024.03.19"]
[Round "6"]
[White "Statham_01"]
[Black "superchess02"]
[Result "0-1"]
[WhiteElo "2595"]
[BlackElo "2828"]
[TimeControl "180+1"]
[EndTime "9:07:46 PDT"]
[Termination "superchess02 won by resignation"]

1. e4 {[%clk 0:03:00.9]} 1... c5 {[%clk 0:02:59.8]} 2. Nf3 {[%clk 0:03:00.7]}
2... d6 {[%clk 0:03:00.5]} 3. d4 {[%clk 0:03:00.6]} 3... cxd4 {[%clk 0:03:01.4]}
4. Nxd4 {[%clk 0:03:01.4]} 4... Nf6 {[%clk 0:03:02.3]} 5. Nc3 {[%clk 0:03:02.1]}
5... a6 {[%clk 0:03:03]} 6. a3 {[%clk 0:03:00.2]} 6... e6 {[%clk 0:03:03.2]} 7.
Be3 {[%clk 0:02:59.6]} 7... b5 {[%clk 0:03:03.3]} 8. g4 {[%clk 0:02:59.6]} 8...
Bb7 {[%clk 0:03:03.9]} 9. Bg2 {[%clk 0:02:59.8]} 9... Nfd7 {[%clk 0:03:01.6]}
10. Qe2 {[%clk 0:02:52.1]} 10... Nc6 {[%clk 0:03:01.2]} 11. O-O-O {[%clk
0:02:47.5]} 11... Nce5 {[%clk 0:03:00.3]} 12. f4 {[%clk 0:02:41.1]} 12... Nc4
{[%clk 0:03:00.8]} 13. f5 {[%clk 0:02:33.1]} 13... e5 {[%clk 0:02:59.7]} 14. Ne6
{[%clk 0:02:08.3]} 14... fxe6 {[%clk 0:02:56]} 15. fxe6 {[%clk 0:02:09.2]} 15...
Nf6 {[%clk 0:02:31.5]} 16. g5 {[%clk 0:02:07.7]} 16... Rc8 {[%clk 0:02:27.4]}
17. gxf6 {[%clk 0:02:01.6]} 17... Qxf6 {[%clk 0:02:28.3]} 18. Bh3 {[%clk
0:01:30.8]} 18... Be7 {[%clk 0:02:27.2]} 19. Rhf1 {[%clk 0:01:27.1]} 19... Qh4
{[%clk 0:02:25]} 20. Rf3 {[%clk 0:01:06.7]} 20... Nxe3 {[%clk 0:02:21.3]} 21.
Rxe3 {[%clk 0:01:07.6]} 21... Bg5 {[%clk 0:02:19.2]} 22. Kb1 {[%clk 0:01:07.3]}
22... Bxe3 {[%clk 0:02:17.4]} 23. Qxe3 {[%clk 0:01:08.2]} 23... O-O {[%clk
0:02:15.9]} 24. Rxd6 {[%clk 0:00:59.4]} 24... Rc7 {[%clk 0:02:11]} 25. Qb6
{[%clk 0:00:37.2]} 25... Rxc3 {[%clk 0:01:49]} 26. e7 {[%clk 0:00:33.4]} 26...
Qxe7 {[%clk 0:01:45]} 27. bxc3 {[%clk 0:00:28]} 27... Bxe4 {[%clk 0:01:45.6]}
28. Rd7 {[%clk 0:00:24.1]} 28... Qxa3 {[%clk 0:01:25.5]} 29. Qe6+ {[%clk
0:00:24]} 29... Kh8 {[%clk 0:01:25.4]} 30. Rf7 {[%clk 0:00:12.3]} 30... Rd8
{[%clk 0:01:13.1]} 31. Rd7 {[%clk 0:00:09.7]} 31... Rf8 {[%clk 0:01:00.5]} 32.
Rf7 {[%clk 0:00:09.7]} 32... Rxf7 {[%clk 0:01:01.1]} 33. Qxf7 {[%clk 0:00:09.8]}
33... Bg6 {[%clk 0:01:01.6]} 34. Qe6 {[%clk 0:00:06.1]} 34... Qxc3 {[%clk
0:00:57.8]} 35. Bf5 {[%clk 0:00:03.6]} 35... Qb4+ {[%clk 0:00:55.2]} 36. Ka1
{[%clk 0:00:02.5]} 36... Qe1+ {[%clk 0:00:47.5]} 37. Kb2 {[%clk 0:00:02.3]}
37... Qb4+ {[%clk 0:00:47]} 38. Ka1 {[%clk 0:00:02.8]} 38... Qd4+ {[%clk
0:00:46.2]} 39. Kb1 {[%clk 0:00:02.9]} 39... Qd1+ {[%clk 0:00:44.3]} 40. Ka2
{[%clk 0:00:02.4]} 40... Qd8 {[%clk 0:00:43.1]} 41. Bxg6 {[%clk 0:00:02.7]}
41... hxg6 {[%clk 0:00:43.5]} 42. Qh3+ {[%clk 0:00:03.3]} 42... Kg8 {[%clk
0:00:43.4]} 43. Qe6+ {[%clk 0:00:03.9]} 43... Kf8 {[%clk 0:00:43.9]} 44. Qxg6
{[%clk 0:00:04.1]} 44... Qf6 {[%clk 0:00:42.4]} 45. Qh7 {[%clk 0:00:03.7]} 45...
Qe6+ {[%clk 0:00:41.7]} 46. Kb2 {[%clk 0:00:03.9]} 46... e4 {[%clk 0:00:42.1]}
47. Qh8+ {[%clk 0:00:03.8]} 47... Kf7 {[%clk 0:00:42.6]} 48. Qh5+ {[%clk
0:00:04.1]} 48... Kg8 {[%clk 0:00:43.2]} 49. Qe2 {[%clk 0:00:03.6]} 49... e3
{[%clk 0:00:43.7]} 50. Kc1 {[%clk 0:00:03.8]} 50... Qe5 {[%clk 0:00:43]} 51. Kb1
{[%clk 0:00:03.5]} 51... a5 {[%clk 0:00:43.5]} 52. h4 {[%clk 0:00:03.9]} 52...
a4 {[%clk 0:00:43.8]} 53. h5 {[%clk 0:00:03.9]} 53... a3 {[%clk 0:00:44.3]} 54.
c4 {[%clk 0:00:03.5]} 54... b4 {[%clk 0:00:43.9]} 55. h6 {[%clk 0:00:02.9]}
55... b3 {[%clk 0:00:43.1]} 56. h7+ {[%clk 0:00:02.1]} 56... Kh8 {[%clk
0:00:43.4]} 57. c5 {[%clk 0:00:02]} 57... a2+ {[%clk 0:00:43.7]} 58. Qxa2 {[%clk
0:00:02.1]} 58... bxa2+ {[%clk 0:00:44.6]} 0-1

[Event "Early-Titled-Tuesday-Blitz-March-19-2024"]
[Site "Chess.com"]
[Date "2024.03.19"]
[Round "6"]
[White "VladimirKramnik"]
[Black "Agibileg"]
[Result "1-0"]
[WhiteElo "3031"]
[BlackElo "2824"]
[TimeControl "180+1"]
[EndTime "9:07:49 PDT"]
[Termination "VladimirKramnik won on time"]

1. e4 {[%clk 0:03:00.9]} 1... e5 {[%clk 0:02:59.1]} 2. Nf3 {[%clk 0:02:59.6]}
2... Nc6 {[%clk 0:02:58.3]} 3. Bc4 {[%clk 0:02:59]} 3... Nf6 {[%clk 0:02:57.1]}
4. d3 {[%clk 0:02:59.1]} 4... h6 {[%clk 0:02:56.3]} 5. O-O {[%clk 0:02:58.3]}
5... d6 {[%clk 0:02:56.5]} 6. c3 {[%clk 0:02:57]} 6... g5 {[%clk 0:02:56.8]} 7.
Bb3 {[%clk 0:02:55.9]} 7... Bg7 {[%clk 0:02:53.2]} 8. Nbd2 {[%clk 0:02:55.7]}
8... O-O {[%clk 0:02:36.9]} 9. h3 {[%clk 0:02:54.9]} 9... Ne7 {[%clk 0:02:36.6]}
10. Re1 {[%clk 0:02:52.1]} 10... Ng6 {[%clk 0:02:36.4]} 11. Nf1 {[%clk
0:02:52.6]} 11... d5 {[%clk 0:02:33.7]} 12. Ng3 {[%clk 0:02:45.4]} 12... dxe4
{[%clk 0:02:31.2]} 13. dxe4 {[%clk 0:02:42.6]} 13... Qxd1 {[%clk 0:02:26.8]} 14.
Bxd1 {[%clk 0:02:41.3]} 14... Rd8 {[%clk 0:02:19.6]} 15. Bc2 {[%clk 0:02:38]}
15... Be6 {[%clk 0:02:18.5]} 16. Nf5 {[%clk 0:02:35]} 16... Bf8 {[%clk
0:02:17.2]} 17. g3 {[%clk 0:02:25.7]} 17... a5 {[%clk 0:02:10.4]} 18. h4 {[%clk
0:02:11.5]} 18... g4 {[%clk 0:01:56.5]} 19. Nh2 {[%clk 0:02:11.1]} 19... Kh7
{[%clk 0:01:49.2]} 20. a4 {[%clk 0:02:07]} 20... Ra6 {[%clk 0:01:31.7]} 21. Be3
{[%clk 0:02:00.7]} 21... Bxf5 {[%clk 0:01:26.4]} 22. exf5 {[%clk 0:01:59.8]}
22... Ne7 {[%clk 0:01:26.9]} 23. Kg2 {[%clk 0:01:31.2]} 23... Ned5 {[%clk
0:01:15.9]} 24. Bg5 {[%clk 0:01:26.4]} 24... hxg5 {[%clk 0:01:11.5]} 25. hxg5
{[%clk 0:01:26.1]} 25... Nd7 {[%clk 0:00:41.9]} 26. f6+ {[%clk 0:01:22.5]} 26...
Kg8 {[%clk 0:00:39.1]} 27. Nxg4 {[%clk 0:01:23.1]} 27... N7xf6 {[%clk
0:00:09.8]} 28. gxf6 {[%clk 0:01:22.9]} 28... Nxf6 {[%clk 0:00:10.7]} 29. Nxe5
{[%clk 0:01:23]} 29... Bd6 {[%clk 0:00:09.1]} 30. Nc4 {[%clk 0:01:12.6]} 30...
Bc5 {[%clk 0:00:08.9]} 31. Rad1 {[%clk 0:01:02.6]} 31... Rxd1 {[%clk 0:00:08.9]}
32. Rxd1 {[%clk 0:01:02.5]} 32... Re6 {[%clk 0:00:09.2]} 33. Kf3 {[%clk
0:00:47.5]} 33... b6 {[%clk 0:00:09.5]} 34. Bf5 {[%clk 0:00:43.8]} 34... Re7
{[%clk 0:00:08.4]} 35. Rd2 {[%clk 0:00:36.6]} 35... Ne8 {[%clk 0:00:08]} 36. Rd7
{[%clk 0:00:25.3]} 36... Re1 {[%clk 0:00:04.4]} 37. Rd8 {[%clk 0:00:17.9]} 37...
Kg7 {[%clk 0:00:03.7]} 38. Nd2 {[%clk 0:00:17.1]} 38... Nd6 {[%clk 0:00:03.4]}
39. Bc2 {[%clk 0:00:15.4]} 39... Rc1 {[%clk 0:00:02.7]} 40. Bb3 {[%clk 0:00:15]}
40... Re1 {[%clk 0:00:02.2]} 41. Rd7 {[%clk 0:00:14]} 41... Kf6 {[%clk
0:00:02.4]} 42. Rxc7 {[%clk 0:00:13]} 42... Re5 {[%clk 0:00:02.7]} 43. Bc2
{[%clk 0:00:09.5]} 43... Rd5 {[%clk 0:00:01.9]} 44. Nf1 {[%clk 0:00:08.2]} 44...
Re5 {[%clk 0:00:01.2]} 45. Rc6 {[%clk 0:00:08.2]} 1-0